fUST/lending_fUST_20251126
["ID","MTS","AMOUNT","RATE_DAILY","PERIOD"]
[394915771,1764117062419,-500.0,0.00014004,2]
[394915772,1764117062428,-160.0,0.00014062,4]
[394915773,1764117062438,-500.0,0.00014077,2]
[394915774,1764117062447,-270.27,0.00014155,2]
[394915775,1764117062456,-500.0,0.00014168,2]
[394915776,1764117062466,-500.0,0.00014188,2]
[394915777,1764117062475,-500.0,0.00014188,2]
[394915778,1764117062486,-500.0,0.00014201,2]
[394915779,1764117062495,-500.0,0.00014208,2]
[394915780,1764117062504,-829.54265847,0.00014212,2]
[394915781,1764117062514,-2000.0,0.00014212,2]
[394915782,1764117062523,-500.0,0.00014218,2]
[394915783,1764117062532,-500.0,0.00014231,2]
[394915784,1764117062541,-158.90730445,0.00014237,2]
[394915785,1764117062551,-1313.70451687,0.00014241,2]
[394915786,1764117062560,-500.0,0.00014245,2]
[394915787,1764117062569,-160.0,0.00014246,2]
[394915788,1764117062581,-200.0,0.00014246,2]
[394915789,1764117062589,-200.0,0.00014246,2]
[394915790,1764117062601,-165.49867229,0.00014246,2]
[394915791,1764117062611,-500.0,0.00014246,2]
[394915792,1764117062620,-500.0,0.00014246,2]
[394915793,1764117062630,-2113.81,0.00014246,2]
[394915794,1764117062639,-2037.0,0.00014246,2]
[394915795,1764117062648,-540.96,0.00014246,2]
[394915796,1764117062658,-500.0,0.00014246,2]
[394915797,1764117062667,-719.23,0.00014246,2]
[394915798,1764117062676,-500.0,0.00014246,2]
[394915799,1764117062686,-518.93,0.00014246,2]
[394915800,1764117062695,-500.0,0.00014246,2]
[394915801,1764117062705,-500.0,0.00014246,2]
[394915802,1764117062714,-500.0,0.00014246,2]
[394915803,1764117062724,-500.0,0.00014246,2]
[394915804,1764117062734,-222.32,0.00014246,2]
[394915805,1764117062744,-500.0,0.00014246,2]
[394915806,1764117062754,-515.02,0.00014246,2]
[394915807,1764117062763,-500.0,0.00014246,2]
[394915808,1764117062773,-500.0,0.00014246,2]
[394915809,1764117062784,-641.61,0.00014246,2]
[394915810,1764117062795,-523.81,0.00014246,2]
[394915811,1764117062806,-533.27,0.00014246,2]
[394915812,1764117062816,-766.83,0.00014246,2]
[394915813,1764117062827,-500.0,0.00014246,2]
[394915814,1764117062836,-823.47,0.00014246,2]
[394915815,1764117062845,-860.06,0.00014246,2]
[394915816,1764117062855,-1536.32,0.00014246,2]
[394915817,1764117062865,-630.48,0.00014246,2]
[394915818,1764117062875,-691.44,0.00014246,2]
[394915819,1764117062884,-500.0,0.00014246,2]
[394915820,1764117062895,-500.0,0.00014246,2]
[394915821,1764117062904,-537.49,0.00014246,2]
[394915822,1764117062914,-682.22,0.00014246,2]
[394915823,1764117062924,-500.0,0.00014246,2]
[394915824,1764117062934,-750.55,0.00014246,2]
[394915825,1764117062943,-3448.91,0.00014246,2]
[394915826,1764117062953,-1400.31,0.00014246,2]
[394915827,1764117062963,-500.0,0.00014246,2]
[394915828,1764117062974,-500.0,0.00014246,2]
[394915829,1764117062984,-500.0,0.00014246,2]
[394915830,1764117062994,-555.5,0.00014246,2]
[394915831,1764117063005,-539.41,0.00014246,2]
[394915832,1764117063015,-592.38,0.00014246,2]
[394915833,1764117063026,-500.0,0.00014246,2]
[394915834,1764117063036,-500.0,0.00014246,2]
[394915835,1764117063046,-500.0,0.00014246,2]
[394915836,1764117063056,-500.0,0.00014246,2]
[394915837,1764117063067,-500.0,0.00014246,2]
[394915838,1764117063076,-500.0,0.00014246,2]
[394915839,1764117063086,-500.0,0.00014246,2]
[394915840,1764117063097,-500.0,0.00014246,2]
[394915841,1764117063107,-722.87,0.00014246,2]
[394915842,1764117063118,-1501.42,0.00014246,2]
[394915843,1764117063127,-783.33,0.00014246,2]
[394915844,1764117063138,-500.0,0.00014246,2]
[394915845,1764117063148,-704.73,0.00014246,2]
[394915846,1764117063159,-500.0,0.00014246,2]
[394915847,1764117063170,-189.22328143,0.00014246,2]
[394915848,1764117063180,-534.51,0.00014246,2]
[394915849,1764117063191,-1148.25,0.00014246,2]
[394915850,1764117063201,-889.22,0.00014246,2]
[394915851,1764117063211,-500.0,0.00014246,2]
[394915852,1764117063221,-1000.0,0.00014247,2]
[394915853,1764117063231,-1000.0,0.00014247,2]
[394915854,1764117063241,-375.77822407,0.00014247,2]
[394915855,1764117063250,-1000.0,0.00014247,2]
[394915856,1764117063259,-1000.0,0.00014247,2]
[394915857,1764117063269,-1000.0,0.00014247,2]
[394915858,1764117063283,-1000.0,0.00014247,2]
[394915859,1764117063292,-1000.0,0.00014247,2]
[394915860,1764117063301,-1000.0,0.00014247,2]
[394915861,1764117063311,-1000.0,0.00014247,2]
[394915862,1764117063322,-1000.0,0.00014247,2]
[394915863,1764117063332,-1000.0,0.00014247,2]
[394915864,1764117063341,-1000.0,0.00014247,2]
[394915865,1764117063352,-1000.0,0.00014247,2]
[394915866,1764117063363,-260.0,0.00014247,2]
[394915867,1764117063372,-500.0,0.00014259,2]
[394915868,1764117063382,-1000.0,0.00014306,2]
[394915869,1764117063392,-244.0,0.00014306,2]
[394915870,1764117063401,-500.0,0.00014326,2]
[394915871,1764117063411,-500.0,0.00014376,2]
[394915872,1764117063423,-225.18697532,0.00014384,2]
[394915873,1764117063433,-500.0,0.00014504,2]
[394915874,1764117063443,-500.0,0.00014509,2]
[394915875,1764117063453,-309.72231876,0.0001452,2]
[394915876,1764117063463,-200.43340091,0.0001452,2]
[394915877,1764117063472,-200.0,0.0001452,2]
[394915878,1764117063483,-500.0,0.0001452,2]
[394915879,1764117063493,-500.0,0.0001452,2]
[394915880,1764117063502,-2113.81,0.0001452,2]
[394915881,1764117063512,-2037.0,0.0001452,2]
[394915882,1764117063522,-540.96,0.0001452,2]
[394915883,1764117063532,-500.0,0.0001452,2]
[394915884,1764117063542,-719.23,0.0001452,2]
[394915885,1764117063551,-500.0,0.0001452,2]
[394915886,1764117063560,-518.93,0.0001452,2]
[394915887,1764117063570,-500.0,0.0001452,2]
[394915888,1764117063580,-500.0,0.0001452,2]
[394915889,1764117063590,-500.0,0.0001452,2]
[394915890,1764117063600,-500.0,0.0001452,2]
[394915891,1764117063609,-396.98368638,0.0001452,2]
[394915892,1764117063620,-515.02,0.0001452,2]
[394915893,1764117063630,-500.0,0.0001452,2]
[394915894,1764117063640,-500.0,0.0001452,2]
[394915895,1764117063650,-641.61,0.0001452,2]
[394915896,1764117063660,-523.81,0.0001452,2]
[394915897,1764117063669,-533.27,0.0001452,2]
[394915898,1764117063679,-766.83,0.0001452,2]
[394915899,1764117063689,-500.0,0.0001452,2]
[394915900,1764117063699,-823.47,0.0001452,2]
[394915901,1764117063845,-860.06,0.0001452,2]
[394915902,1764117063856,-1536.32,0.0001452,2]
[394915903,1764117063866,-691.44,0.0001452,2]
[394915904,1764117063875,-500.0,0.0001452,2]
[394915905,1764117063885,-500.0,0.0001452,2]
[394915906,1764117063894,-537.49,0.0001452,2]
[394915907,1764117063905,-682.22,0.0001452,2]
[394915908,1764117063915,-500.0,0.0001452,2]
[394915909,1764117063925,-750.55,0.0001452,2]
[394915910,1764117063935,-3448.91,0.0001452,2]
[394915911,1764117063944,-1400.31,0.0001452,2]
[394915912,1764117063955,-500.0,0.0001452,2]
[394915913,1764117063966,-500.0,0.0001452,2]
[394915914,1764117063977,-500.0,0.0001452,2]
[394915915,1764117063988,-555.5,0.0001452,2]
[394915916,1764117063998,-539.41,0.0001452,2]
[394915917,1764117064008,-592.38,0.0001452,2]
[394915918,1764117064018,-500.0,0.0001452,2]
[394915919,1764117064028,-500.0,0.0001452,2]
[394915920,1764117064037,-206.90713928,0.0001452,2]
[394915921,1764117064047,-500.0,0.0001452,2]
[394915922,1764117064058,-500.0,0.0001452,2]
[394915923,1764117064070,-500.0,0.0001452,2]
[394915924,1764117064080,-500.0,0.0001452,2]
[394915925,1764117064089,-174.59066953,0.0001452,2]
[394915926,1764117064100,-722.87,0.0001452,2]
[394915927,1764117064109,-1501.42,0.0001452,2]
[394915928,1764117064120,-783.33,0.0001452,2]
[394915929,1764117064130,-500.0,0.0001452,2]
[394915930,1764117064141,-704.73,0.0001452,2]
[394915931,1764117064151,-500.0,0.0001452,2]
[394915932,1764117064160,-534.51,0.0001452,2]
[394915933,1764117064170,-1148.25,0.0001452,2]
[394915934,1764117064180,-889.22,0.0001452,2]
[394915935,1764117064190,-500.0,0.0001452,2]
[394915936,1764117064199,-251808.5534347,0.00014521,2]
[394915937,1764117064209,-19965.603731,0.00014526,2]
[394915938,1764117064219,-500.0,0.00014528,2]
[394915939,1764117064228,-330.0,0.00014537,2]
[394915940,1764117064240,-500.0,0.00014542,2]
[394915941,1764117064249,-500.0,0.00014559,2]
[394915942,1764117064258,-280.42969807,0.00014573,2]
[394915943,1764117064268,-500.0,0.00014573,2]
[394915944,1764117064283,-500.0,0.00014573,2]
[394915945,1764117064292,-158.03688491,0.00014573,2]
[394915946,1764117064302,-157.56477617,0.00014573,2]
[394915947,1764117064312,-500.0,0.00014573,2]
[394915948,1764117064322,-500.0,0.00014573,2]
[394915949,1764117064331,-234.65476707,0.00014573,2]
[394915950,1764117064340,-500.0,0.00014573,2]
[394915951,1764117064350,-600.05833836,0.00014573,2]
[394915952,1764117064359,-160.03735327,0.00014573,2]
[394915953,1764117064368,-500.0,0.00014573,2]
[394915954,1764117064377,-500.0,0.00014573,2]
[394915955,1764117064386,-158.03688637,0.00014573,2]
[394915956,1764117064395,-158.2369316,0.00014573,2]
[394915957,1764117064404,-500.0,0.00014573,2]
[394915958,1764117064413,-500.0,0.00014573,2]
[394915959,1764117064422,-500.0,0.00014573,2]
[394915960,1764117064431,-563.3830945,0.00014573,2]
[394915961,1764117064440,-500.0,0.00014573,2]
[394915962,1764117064450,-500.0,0.00014573,2]
[394915963,1764117064459,-415.25452561,0.00014573,2]
[394915964,1764117064469,-500.0,0.00014573,2]
[394915965,1764117064478,-500.0,0.00014573,2]
[394915966,1764117064487,-597.48380115,0.00014573,2]
[394915967,1764117064496,-500.0,0.00014573,2]
[394915968,1764117064506,-500.0,0.00014573,2]
[394915969,1764117064516,-500.0,0.00014573,2]
[394915970,1764117064527,-500.0,0.00014573,2]
[394915971,1764117064537,-159.5458287,0.00014573,2]
[394915972,1764117064547,-500.0,0.00014573,2]
[394915973,1764117064556,-500.0,0.00014573,2]
[394915974,1764117064565,-512.34257568,0.00014573,2]
[394915975,1764117064574,-500.0,0.00014573,2]
[394915976,1764117064583,-500.0,0.00014573,2]
[394915977,1764117064594,-500.0,0.00014573,2]
[394915978,1764117064603,-500.0,0.00014573,2]
[394915979,1764117064613,-302.75593602,0.00014573,2]
[394915980,1764117064622,-500.0,0.00014573,2]
[394915981,1764117064631,-500.0,0.00014573,2]
[394915982,1764117064640,-500.0,0.00014573,2]
[394915983,1764117064650,-500.0,0.00014573,2]
[394915984,1764117064658,-500.0,0.00014573,2]
[394915985,1764117064667,-500.0,0.00014573,2]
[394915986,1764117064676,-500.0,0.00014573,2]
[394915987,1764117064686,-500.0,0.00014573,2]
[394915988,1764117064696,-500.0,0.00014573,2]
[394915989,1764117064705,-500.0,0.00014573,2]
[394915990,1764117064715,-500.0,0.00014573,2]
[394915991,1764117064724,-500.0,0.00014573,2]
[394915992,1764117064734,-500.0,0.00014573,2]
[394915993,1764117064743,-500.0,0.00014573,2]
[394915994,1764117064755,-500.0,0.00014573,2]
[394915995,1764117064765,-500.0,0.00014573,2]
[394915996,1764117064775,-500.0,0.00014573,2]
[394915997,1764117064784,-500.0,0.00014573,2]
[394915998,1764117064793,-500.0,0.00014573,2]
[394915999,1764117064802,-500.0,0.00014573,2]
[394916000,1764117064811,-500.0,0.00014573,2]
[394916001,1764117064820,-500.0,0.00014573,2]
[394916002,1764117064829,-500.0,0.00014573,2]
[394916003,1764117064838,-500.0,0.00014573,2]
[394916004,1764117064846,-500.0,0.00014573,2]
[394916005,1764117064856,-500.0,0.00014573,2]
[394916006,1764117064865,-447.90744779,0.00014573,2]
[394916007,1764117064874,-532.67323963,0.00014573,2]
[394916008,1764117064884,-172.70252526,0.00014573,2]
[394916009,1764117064894,-500.0,0.00014573,2]
[394916010,1764117064903,-500.0,0.00014573,2]
[394916011,1764117064913,-500.0,0.00014573,2]
[394916012,1764117064922,-500.0,0.00014573,2]
[394916013,1764117064932,-158.23693314,0.00014573,2]
[394916014,1764117064942,-516.69911341,0.00014573,2]
[394916015,1764117064953,-500.0,0.00014573,2]
[394916016,1764117064963,-500.0,0.00014573,2]
[394916017,1764117064973,-157.52844787,0.00014573,2]
[394916018,1764117064987,-454.22137151,0.00014573,2]
[394916019,1764117064997,-500.0,0.00014573,2]
[394916020,1764117065007,-159.22316177,0.00014573,2]
[394916021,1764117065017,-500.0,0.00014573,2]
[394916022,1764117065027,-536.91488757,0.00014573,2]
[394916023,1764117065038,-500.0,0.00014573,2]
[394916024,1764117065048,-500.0,0.00014573,2]
[394916025,1764117065058,-160.03735336,0.00014573,2]
[394916026,1764117065069,-417.77712739,0.00014631,2]
[394916027,1764117065078,-500.0,0.00014667,2]
[394916028,1764117065087,-500.0,0.00014675,2]
[394916029,1764117065101,-500.0,0.00014719,2]
[394916030,1764117065111,-160.0,0.00014744,5]
[394916031,1764117065120,-1946.31080594,0.0001476,2]
[394916032,1764117065130,-288.72322593,0.00014794,2]
[394916033,1764117065139,-500.0,0.00014794,2]
[394916034,1764117065149,-2113.81,0.00014794,2]
[394916035,1764117065158,-2037.0,0.00014794,2]
[394916036,1764117065167,-540.96,0.00014794,2]
[394916037,1764117065176,-500.0,0.00014794,2]
[394916038,1764117065185,-719.23,0.00014794,2]
[394916039,1764117065194,-500.0,0.00014794,2]
[394916040,1764117065203,-518.93,0.00014794,2]
[394916041,1764117065212,-500.0,0.00014794,2]
[394916042,1764117065224,-500.0,0.00014794,2]
[394916043,1764117065234,-500.0,0.00014794,2]
[394916044,1764117065243,-500.0,0.00014794,2]
[394916045,1764117065252,-515.02,0.00014794,2]
[394916046,1764117065262,-500.0,0.00014794,2]
[394916047,1764117065275,-500.0,0.00014794,2]
[394916048,1764117065284,-641.61,0.00014794,2]
[394916049,1764117065293,-523.81,0.00014794,2]
[394916050,1764117065303,-533.27,0.00014794,2]
[394916051,1764117065314,-766.83,0.00014794,2]
[394916052,1764117065323,-500.0,0.00014794,2]
[394916053,1764117065332,-823.47,0.00014794,2]
[394916054,1764117065343,-860.06,0.00014794,2]
[394916055,1764117065353,-1536.32,0.00014794,2]
[394916056,1764117065364,-691.44,0.00014794,2]
[394916057,1764117065373,-500.0,0.00014794,2]
[394916058,1764117065383,-391.77728587,0.00014794,2]
[394916059,1764117065392,-537.49,0.00014794,2]
[394916060,1764117065402,-682.22,0.00014794,2]
[394916061,1764117065412,-500.0,0.00014794,2]
[394916062,1764117065421,-750.55,0.00014794,2]
[394916063,1764117065430,-3448.91,0.00014794,2]
[394916064,1764117065440,-1400.31,0.00014794,2]
[394916065,1764117065449,-500.0,0.00014794,2]
[394916066,1764117065459,-255.4,0.00014794,2]
[394916067,1764117065469,-500.0,0.00014794,2]
[394916068,1764117065479,-555.5,0.00014794,2]
[394916069,1764117065488,-592.38,0.00014794,2]
[394916070,1764117065498,-539.41,0.00014794,2]
[394916071,1764117065508,-364.57545032,0.00014794,2]
[394916072,1764117065517,-500.0,0.00014794,2]
[394916074,1764117065528,-500.0,0.00014794,2]
[394916075,1764117065537,-500.0,0.00014794,2]
[394916076,1764117065547,-500.0,0.00014794,2]
[394916077,1764117065557,-500.0,0.00014794,2]
[394916078,1764117065567,-722.87,0.00014794,2]
[394916079,1764117065576,-1501.42,0.00014794,2]
[394916080,1764117065585,-783.33,0.00014794,2]
[394916081,1764117065595,-500.0,0.00014794,2]
[394916082,1764117065604,-704.73,0.00014794,2]
[394916083,1764117065614,-429.83390637,0.00014794,2]
[394916084,1764117065623,-534.51,0.00014794,2]
[394916085,1764117065631,-1148.25,0.00014794,2]
[394916086,1764117065640,-889.22,0.00014794,2]
[394916087,1764117065649,-500.0,0.00014794,2]
[394916088,1764117065658,-1514.03787695,0.00014795,2]
[394916089,1764117065667,-1500.0,0.00014795,2]
[394916090,1764117065676,-1500.0,0.00014795,2]
[394916091,1764117065686,-1500.0,0.00014795,2]
[394916092,1764117065695,-204.63914648,0.00014795,2]
[394916093,1764117065704,-1020.05162309,0.00014795,2]
[394916094,1764117065714,-1500.0,0.00014795,2]
[394916095,1764117065723,-1500.0,0.00014795,2]
[394916096,1764117065732,-1500.0,0.00014795,2]
[394916097,1764117065742,-655.59044444,0.00014795,2]
[394916098,1764117065752,-1500.0,0.00014795,2]
[394916099,1764117065761,-1500.0,0.00014795,2]
[394916100,1764117065770,-1414.70181928,0.00014795,2]
[394916101,1764117065779,-360.0,0.00014795,2]
[394916102,1764117065788,-500.0,0.00014844,2]
[394916103,1764117065797,-500.0,0.00014884,2]
[394916104,1764117065806,-591.81423176,0.000149,2]
[394916105,1764117065815,-452.03061216,0.000149,2]
[394916106,1764117065825,-233.51889341,0.00014932,2]
[394916107,1764117065834,-200.0,0.00014999,2]
[394916108,1764117065843,-1500.0,0.00015,2]
[394916109,1764117065853,-1500.0,0.00015,2]
[394916110,1764117065862,-1500.0,0.00015,2]
[394916111,1764117065871,-1500.0,0.00015,2]
[394916112,1764117065880,-1500.0,0.00015,2]
[394916113,1764117065889,-1500.0,0.00015,2]
[394916114,1764117065898,-1500.0,0.00015,2]
[394916115,1764117065908,-1500.0,0.00015,2]
[394916116,1764117065917,-1500.0,0.00015,2]
[394916117,1764117065927,-1500.0,0.00015,2]
[394916118,1764117065937,-1000.0,0.00015,2]
[394916119,1764117065947,-1038.83,0.00015,2]
[394916120,1764117065957,-375.09685002,0.00015,2]
[394916122,1764117065966,-15899.29262181,0.00015,2]
[394916123,1764117065976,-1000.0,0.00015,10]
[394916124,1764117065985,-2000.0,0.00015,2]
[394916125,1764117065995,-2000.0,0.00015,2]
[394916126,1764117066004,-1013.51610014,0.00015,2]
[394916127,1764117066014,-2000.0,0.00015,2]
[394916128,1764117066024,-21569.03345262,0.00015,2]
[394916129,1764117066035,-9127.31366014,0.00015,2]
[394916130,1764117066044,-527.87786153,0.00015008,2]
[394916131,1764117066054,-3649.39743432,0.00015028,2]
[394916132,1764117066063,-500.0,0.0001504,2]
[394916133,1764117066072,-500.0,0.00015068,2]
[394916134,1764117066081,-2113.81,0.00015068,2]
[394916135,1764117066091,-2037.0,0.00015068,2]
[394916136,1764117066100,-540.96,0.00015068,2]
[394916137,1764117066110,-180.91285483,0.00015068,2]
[394916138,1764117066120,-261.23405967,0.00015068,2]
[394916139,1764117066129,-719.23,0.00015068,2]
[394916140,1764117066139,-527.7809333,0.00015068,2]
[394916141,1764117066148,-518.93,0.00015068,2]
[394916142,1764117066158,-500.0,0.00015068,2]
[394916143,1764117066169,-500.0,0.00015068,2]
[394916144,1764117066178,-500.0,0.00015068,2]
[394916145,1764117066188,-361.86899503,0.00015068,2]
[394916146,1764117066198,-515.02,0.00015068,2]
[394916147,1764117066207,-500.0,0.00015068,2]
[394916148,1764117066216,-500.0,0.00015068,2]
[394916149,1764117066227,-641.61,0.00015068,2]
[394916150,1764117066237,-523.81,0.00015068,2]
[394916151,1764117066246,-533.27,0.00015068,2]
[394916152,1764117066255,-766.83,0.00015068,2]
[394916153,1764117066266,-500.0,0.00015068,2]
[394916154,1764117066278,-823.47,0.00015068,2]
[394916155,1764117066288,-860.06,0.00015068,2]
[394916156,1764117066299,-1536.32,0.00015068,2]
[394916157,1764117066310,-691.44,0.00015068,2]
[394916158,1764117066321,-500.0,0.00015068,2]
[394916159,1764117066331,-537.49,0.00015068,2]
[394916160,1764117066342,-682.22,0.00015068,2]
[394916161,1764117066352,-500.0,0.00015068,2]
[394916162,1764117066365,-750.55,0.00015068,2]
[394916163,1764117066377,-3448.91,0.00015068,2]
[394916164,1764117066386,-1400.31,0.00015068,2]
[394916165,1764117066396,-271.71384215,0.00015068,2]
[394916166,1764117066410,-500.0,0.00015068,2]
[394916167,1764117066420,-555.5,0.00015068,2]
[394916168,1764117066431,-592.38,0.00015068,2]
[394916169,1764117066441,-539.41,0.00015068,2]
[394916170,1764117066451,-500.0,0.00015068,2]
[394916171,1764117066460,-500.0,0.00015068,2]
[394916172,1764117066469,-500.0,0.00015068,2]
[394916173,1764117066479,-500.0,0.00015068,2]
[394916174,1764117066490,-500.0,0.00015068,2]
[394916175,1764117066499,-722.87,0.00015068,2]
[394916176,1764117066508,-1501.42,0.00015068,2]
[394916177,1764117066517,-783.33,0.00015068,2]
[394916178,1764117066528,-500.0,0.00015068,2]
[394916179,1764117066538,-704.73,0.00015068,2]
[394916180,1764117066547,-534.51,0.00015068,2]
[394916181,1764117066556,-1148.25,0.00015068,2]
[394916182,1764117066566,-889.22,0.00015068,2]
[394916183,1764117066575,-500.0,0.00015068,2]
[394916184,1764117066584,-611.938634,0.00015068,2]
[394916185,1764117066594,-800.0,0.00015068,2]
[394916186,1764117066603,-1000.0,0.00015121,2]
[394916187,1764117066612,-429.3643187,0.00015121,2]
[394916188,1764117066621,-1000.0,0.00015121,2]
[394916189,1764117066631,-1000.0,0.00015121,2]
[394916190,1764117066640,-1000.0,0.00015121,2]
[394916192,1764117066659,-500.78089987,0.00015121,2]
[394916193,1764117066672,-1000.0,0.00015121,2]
[394916194,1764117066681,-931.56960492,0.00015121,2]
[394916195,1764117066690,-1000.0,0.00015121,2]
[394916196,1764117066699,-837.48016428,0.00015121,2]
[394916197,1764117066710,-322.28258547,0.00015121,2]
[394916198,1764117066720,-1000.0,0.00015121,2]
[394916199,1764117066731,-1000.0,0.00015121,2]
[394916200,1764117066742,-1000.0,0.00015121,2]
[394916201,1764117066752,-1000.0,0.00015121,2]
[394916202,1764117066762,-934.72053996,0.00015121,2]
[394916203,1764117066772,-1000.0,0.00015121,2]
[394916204,1764117066781,-1000.0,0.00015121,2]
[394916205,1764117066790,-1000.0,0.00015121,2]
[394916206,1764117066799,-1000.0,0.00015121,2]
[394916207,1764117066809,-1000.0,0.00015121,2]
[394916208,1764117066818,-1000.0,0.00015121,2]
[394916209,1764117066827,-1000.0,0.00015121,2]
[394916210,1764117066837,-1000.0,0.00015121,2]
[394916211,1764117066847,-294.53200512,0.00015121,2]
[394916212,1764117066856,-746.44035205,0.00015121,2]
[394916213,1764117066865,-706.7217132,0.00015121,2]
[394916214,1764117066874,-522.21624308,0.00015121,2]
[394916215,1764117066884,-762.82435102,0.00015121,2]
[394916216,1764117066893,-1000.0,0.00015121,2]
[394916217,1764117066904,-906.41744799,0.00015121,2]
[394916218,1764117066914,-684.15754114,0.00015121,2]
[394916219,1764117066923,-1000.0,0.00015121,2]
[394916220,1764117066933,-1000.0,0.00015121,2]
[394916221,1764117066942,-1000.0,0.00015121,2]
[394916222,1764117066953,-518.80100226,0.00015121,2]
[394916223,1764117066962,-1000.0,0.00015121,2]
[394916224,1764117066972,-1000.0,0.00015121,2]
[394916225,1764117066982,-1000.0,0.00015121,2]
[394916226,1764117066992,-1000.0,0.00015121,2]
[394916227,1764117067001,-1000.0,0.00015121,2]
[394916228,1764117067011,-1000.0,0.00015121,2]
[394916229,1764117067021,-1000.0,0.00015121,2]
[394916230,1764117067030,-1000.0,0.00015121,2]
[394916231,1764117067041,-1000.0,0.00015121,2]
[394916232,1764117067051,-1000.0,0.00015121,2]
[394916233,1764117067061,-200.86270505,0.00015121,2]
[394916234,1764117067072,-547.40694546,0.00015121,2]
[394916235,1764117067082,-1000.0,0.00015121,2]
[394916236,1764117067091,-1000.0,0.00015121,2]
[394916237,1764117067101,-1000.0,0.00015121,2]
[394916238,1764117067110,-1000.0,0.00015121,2]
[394916239,1764117067120,-1000.0,0.00015121,2]
[394916240,1764117067130,-1000.0,0.00015121,2]
[394916241,1764117067141,-994.05710409,0.00015121,2]
[394916242,1764117067151,-1000.0,0.00015121,2]
[394916243,1764117067291,-1000.0,0.00015121,2]
[394916244,1764117067302,-1000.0,0.00015121,2]
[394916245,1764117067312,-811.12809164,0.00015121,2]
[394916246,1764117067322,-306.42338049,0.00015121,2]
[394916247,1764117067332,-272.28721652,0.0001515,20]
[394916248,1764117067341,-500.0,0.00015156,2]
[394916249,1764117067352,-500.0,0.00015158,2]
[394916250,1764117067362,-500.0,0.00015171,2]
[394916251,1764117067371,-500.0,0.00015186,2]
[394916252,1764117067381,-500.0,0.0001519,2]
[394916253,1764117067390,-500.0,0.00015207,2]
[394916254,1764117067399,-500.0,0.00015247,2]
[394916255,1764117067409,-500.0,0.00015256,2]
[394916256,1764117067419,-500.0,0.00015342,2]
[394916257,1764117067428,-2113.81,0.00015342,2]
[394916258,1764117067437,-2037.0,0.00015342,2]
[394916259,1764117067447,-540.96,0.00015342,2]
[394916260,1764117067456,-719.23,0.00015342,2]
[394916261,1764117067466,-518.93,0.00015342,2]
[394916262,1764117067477,-500.0,0.00015342,2]
[394916263,1764117067489,-553.34263629,0.00015342,2]
[394916264,1764117067498,-500.0,0.00015342,2]
[394916265,1764117067507,-515.02,0.00015342,2]
[394916266,1764117067518,-500.0,0.00015342,2]
[394916267,1764117067528,-500.0,0.00015342,2]
[394916268,1764117067537,-641.61,0.00015342,2]
[394916269,1764117067547,-523.81,0.00015342,2]
[394916270,1764117067559,-533.27,0.00015342,2]
[394916271,1764117067569,-766.83,0.00015342,2]
[394916272,1764117067579,-500.0,0.00015342,2]
[394916273,1764117067589,-823.47,0.00015342,2]